bitfinex-derivatives/quotes_BTCF0:USTF0_20251209
["timestamp","ask_amount","ask_price","bid_price","bid_amount"]
[1765241993508,0.05622,90445.0,90444.0,0.46309555]
[1765241995208,0.05622,90445.0,90444.0,0.00010555]
[1765241995408,0.44138392,90445.0,90444.0,0.00010555]
[1765241996404,0.44138392,90445.0,90444.0,0.02886555]
[1765241996911,0.44138392,90445.0,90444.0,0.00010555]
[1765241999013,0.44138392,90445.0,90444.0,0.02886555]
[1765241999208,0.44138392,90445.0,90444.0,0.05724555]
[1765242001011,0.05622,90445.0,90444.0,0.05724555]
[1765242001207,0.05622,90445.0,90444.0,0.45449555]
[1765242002418,0.48622,90445.0,90444.0,0.05724555]
[1765242003521,0.05622,90445.0,90444.0,0.05724555]
[1765242008541,0.05622,90445.0,90444.0,0.06830115]
[1765242008731,0.05622,90445.0,90444.0,0.45830115]
[1765242008927,0.05622,90445.0,90444.0,0.44724555]
[1765242009131,0.05622,90445.0,90444.0,0.05724555]
[1765242010047,0.08138538,90445.0,90444.0,0.05724555]
[1765242010241,0.08138538,90445.0,90444.0,0.00010555]
[1765242010242,0.50138538,90445.0,90444.0,0.00010555]
[1765242014538,0.50138538,90445.0,90435.0,0.01101646]
[1765242014842,0.083149,90416.0,90415.0,0.05747602]
[1765242015343,0.083149,90416.0,90415.0,0.06853428]
[1765242015531,0.08325582,90416.0,90415.0,0.06853428]
[1765242015729,0.05495682,90416.0,90415.0,0.06853428]
[1765242023447,0.06725682,90416.0,90415.0,0.06853428]
[1765242025255,0.05495682,90416.0,90415.0,0.06853428]
[1765242027351,0.07219682,90416.0,90415.0,0.06853428]
[1765242027551,0.05495682,90416.0,90415.0,0.06853428]
[1765242027846,0.05495682,90416.0,90415.0,0.07959348]
[1765242029151,0.07219682,90416.0,90415.0,0.06853428]
[1765242029852,0.07219682,90416.0,90415.0,0.01216428]
[1765242030448,0.07219682,90416.0,90415.0,0.02836602]
[1765242030652,0.07219682,90416.0,90415.0,0.05747602]
[1765242031248,0.49219682,90416.0,90415.0,0.05747602]
[1765242031553,0.49219682,90416.0,90415.0,0.02836602]
[1765242032048,0.49219682,90416.0,90415.0,0.00110602]
[1765242032257,0.49219682,90416.0,90409.0,0.01098269]
[1765242032258,0.05485,90414.0,90409.0,0.01098269]
[1765242032452,0.44485,90414.0,90406.0,0.00016585]
[1765242032652,0.05485,90407.0,90406.0,0.00016585]
[1765242032955,0.41485,90407.0,90406.0,0.00016585]
[1765242033340,0.41485,90407.0,90406.0,0.02742585]
[1765242033951,0.4259102,90407.0,90406.0,0.00016585]
[1765242034552,0.4259102,90407.0,90406.0,0.02742585]
[1765242035950,0.4259102,90407.0,90406.0,0.05653585]
[1765242038857,0.4259102,90407.0,90406.0,0.02742585]
[1765242039054,0.4259102,90407.0,90406.0,0.05653585]
[1765242039758,0.2159102,90407.0,90406.0,0.05653585]
[1765242041257,0.2159102,90407.0,90406.0,0.00016585]
[1765242041452,0.2159102,90407.0,90406.0,0.05653585]
[1765242041757,0.4159102,90407.0,90406.0,0.00016585]
[1765242042859,0.4159102,90407.0,90406.0,0.02742585]
[1765242044257,0.4159102,90407.0,90406.0,0.00016585]
[1765242049267,0.1059102,90407.0,90406.0,0.05864585]
[1765242055370,0.1059102,90407.0,90406.0,0.00016585]
[1765242055574,0.4559102,90407.0,90406.0,0.05817585]
[1765242055873,0.4559102,90407.0,90406.0,0.00016585]
[1765242056877,0.4559102,90407.0,90406.0,0.02864585]
[1765242058066,0.4559102,90407.0,90406.0,0.05817585]
[1765242059777,0.4559102,90407.0,90406.0,0.00016585]
[1765242060078,0.4559102,90407.0,90406.0,0.02864585]
[1765242060474,0.4559102,90407.0,90406.0,0.05817585]
[1765242060882,0.0859102,90407.0,90406.0,0.05817585]
[1765242061079,0.4359102,90407.0,90406.0,0.05817585]
[1765242061380,0.46080466,90407.0,90406.0,0.02864585]
[1765242061771,0.43344466,90407.0,90406.0,0.05817585]
[1765242061971,0.02822,90414.0,90413.0,0.05801]
[1765242062171,0.0392793,90414.0,90413.0,0.05801]
[1765242062369,0.0664093,90414.0,90413.0,0.05801]
[1765242063372,0.00010682,90416.0,90415.0,0.0690692]
[1765242063578,0.00016585,90425.0,90424.0,0.07591]
[1765242063772,0.00016585,90425.0,90424.0,0.47591]
[1765242064282,0.05551585,90425.0,90424.0,0.47591]
[1765242064475,0.05551585,90425.0,90424.0,0.07591]
[1765242064680,0.05551585,90425.0,90424.0,0.16801]
[1765242066873,0.05551585,90425.0,90424.0,0.05801]
[1765242067071,0.00016585,90425.0,90424.0,0.40801]
[1765242067472,0.05551585,90425.0,90424.0,0.40801]
[1765242070092,0.06657375,90425.0,90424.0,0.12801]
[1765242070287,0.08351375,90425.0,90424.0,0.05801]
[1765242070483,0.08351375,90425.0,90424.0,0.02848]
[1765242071484,0.0696789,90417.0,90416.0,0.066369]
[1765242072385,0.0696789,90417.0,90416.0,0.05531]
[1765242072585,0.0696789,90417.0,90416.0,0.066369]
[1765242074390,0.0696789,90417.0,90416.0,0.05531]
[1765242074591,0.01694,90420.0,90408.0,0.0222]
[1765242074592,0.08310375,90425.0,90424.0,0.05606]
[1765242074783,0.32310375,90425.0,90424.0,0.05606]
[1765242074985,0.06640375,90425.0,90424.0,0.05606]
[1765242077892,0.05534585,90425.0,90424.0,0.05606]
[1765242078899,0.05183265,90425.0,90424.0,0.05606]
[1765242079899,0.066237,90433.0,90432.0,0.011057]
[1765242080097,0.02788585,90434.0,90433.0,0.02819]
[1765242080299,0.05534585,90434.0,90433.0,0.05606]
[1765242081998,0.00016585,90434.0,90433.0,0.05606]
[1765242082306,0.05534585,90434.0,90433.0,0.05606]
[1765242082600,0.02788585,90434.0,90433.0,0.05606]
[1765242083001,0.05534585,90434.0,90433.0,0.05606]
[1765242087302,0.066237,90433.0,90432.0,0.067117]
[1765242087995,0.476237,90433.0,90432.0,0.067117]
[1765242088511,0.476237,90433.0,90432.0,0.05606]
[1765242091816,0.05518,90433.0,90432.0,0.07343]
[1765242093317,0.05518,90433.0,90432.0,0.05606]
[1765242094016,0.05518,90433.0,90432.0,0.07343]
[1765242094603,0.05818,90433.0,90432.0,0.07443]
[1765242094903,0.05818,90433.0,90432.0,0.05706]
[1765242096815,0.05818,90433.0,90432.0,0.02919]
[1765242097017,0.05818,90433.0,90432.0,0.05706]
[1765242099221,0.05818,90433.0,90432.0,0.001]
[1765242099420,0.45818,90433.0,90432.0,0.001]
[1765242100123,0.19818,90433.0,90432.0,0.05706]
[1765242101528,0.05818,90433.0,90432.0,0.05706]
[1765242101731,0.47818,90433.0,90432.0,0.02919]
[1765242101923,0.47818,90433.0,90432.0,0.001]
[1765242102336,0.47818,90433.0,90432.0,0.02919]
[1765242102731,0.47818,90433.0,90432.0,0.001]
[1765242103327,0.47818,90433.0,90432.0,0.05809]
[1765242103527,0.05818,90433.0,90432.0,0.07581]
[1765242103726,0.003,90433.0,90432.0,0.07581]
[1765242103924,0.0319,90433.0,90432.0,0.07581]
[1765242104532,0.06057,90433.0,90432.0,0.07581]
[1765242105027,0.003,90433.0,90432.0,0.07581]
[1765242105234,0.003,90433.0,90432.0,0.44581]
[1765242105429,0.00110571,90440.0,90439.0,0.0110562]
[1765242105630,0.05757,90452.0,90451.0,0.05709]
[1765242105934,0.0110534,90463.0,90462.0,0.05709]
[1765242106134,0.13369264,90463.0,90462.0,0.05709]
[1765242106521,0.08263924,90463.0,90462.0,0.05709]
[1765242106737,0.08263924,90463.0,90462.0,0.45709]
[1765242106936,0.05757,90463.0,90462.0,0.45709]
[1765242107330,0.05757,90463.0,90462.0,0.47481]
[1765242107927,0.05757,90463.0,90462.0,0.47581]
[1765242108532,0.05757,90463.0,90462.0,0.48594839]
[1765242108733,0.05857,90463.0,90462.0,0.48894839]
[1765242110237,0.001,90463.0,90462.0,0.48894839]
[1765242110833,0.05773585,90472.0,90471.0,0.05709]
[1765242112230,0.05773585,90472.0,90471.0,0.02936]
[1765242112434,0.07396,90468.0,90467.0,0.0681427]
[1765242112630,0.07396,90468.0,90467.0,0.2281427]
[1765242113235,0.07396,90468.0,90467.0,0.21709]
[1765242113538,0.07396,90468.0,90467.0,0.05709]
[1765242114049,0.07396,90468.0,90467.0,0.05809]
[1765242114347,0.05757,90468.0,90467.0,0.05809]
[1765242114547,0.07396,90468.0,90467.0,0.05809]
[1765242114745,0.07396,90468.0,90467.0,0.03036]
[1765242114949,0.07396,90468.0,90467.0,0.05809]
[1765242116646,0.07496,90468.0,90467.0,0.05709]
[1765242117149,0.07396,90468.0,90467.0,0.05709]
[1765242117350,0.05757,90468.0,90467.0,0.05809]
[1765242119247,0.05773585,90472.0,90471.0,0.0681423]
[1765242120442,0.05873585,90472.0,90471.0,0.0681423]
[1765242121447,0.05773585,90472.0,90471.0,0.0691423]
[1765242122544,0.00016585,90472.0,90471.0,0.4291423]
[1765242122749,0.0391606,90486.0,90485.0,0.0828305]
[1765242122955,0.09253386,90486.0,90485.0,0.0828305]
[1765242123250,0.02510326,90486.0,90485.0,0.0828305]
[1765242123453,0.0292151,90490.0,90489.0,0.0682901]
[1765242123764,0.0685351,90490.0,90489.0,0.0682901]
[1765242124265,0.0574851,90490.0,90489.0,0.0682901]
[1765242124746,0.0574851,90490.0,90489.0,0.0692901]
[1765242126452,0.0292151,90490.0,90489.0,0.0692901]
[1765242126956,0.0011051,90490.0,90489.0,0.4892901]
[1765242127156,0.00016585,90499.0,90498.0,0.082829]
[1765242127355,0.0574848,90515.0,90514.0,0.0682871]
[1765242127547,0.08256473,90515.0,90514.0,0.0682871]
[1765242127851,0.0574848,90515.0,90514.0,0.0682871]
[1765242128961,0.05638,90507.0,90506.0,0.068288]
[1765242129956,0.0674281,90506.0,90505.0,0.00016576]
[1765242130349,0.0674281,90506.0,90505.0,0.02964576]
[1765242130654,0.0674281,90506.0,90505.0,0.05740576]
[1765242130956,0.0714281,90506.0,90505.0,0.05840576]
[1765242131357,0.06038,90506.0,90505.0,0.05840576]
[1765242132151,0.004,90506.0,90505.0,0.05840576]
[1765242132350,0.004,90506.0,90505.0,0.48840576]
[1765242132560,0.0011048,90515.0,90514.0,0.05499]
[1765242132755,0.0011048,90515.0,90514.0,0.1460371]
[1765242133055,0.0011048,90515.0,90510.0,0.01733]
[1765242133056,0.05611,90511.0,90510.0,0.0381075]
[1765242133264,0.05611,90507.0,90506.0,0.066038]
[1765242134461,0.05611,90514.0,90513.0,0.05499]
[1765242135452,0.05611,90509.0,90508.0,0.02706]
[1765242136257,0.05611,90509.0,90508.0,0.05499]
[1765242136458,0.05611,90509.0,90508.0,0.02706]
[1765242136665,0.05611,90506.0,90505.0,0.00016576]
[1765242136965,0.42611,90506.0,90505.0,0.00016576]
[1765242137556,0.45119852,90506.0,90505.0,0.00016576]
[1765242138767,0.45219852,90506.0,90505.0,0.00016576]
[1765242139464,0.32219852,90506.0,90505.0,0.00016576]
[1765242139656,0.29611,90506.0,90505.0,0.05515576]
[1765242139857,0.32224755,90506.0,90505.0,0.05515576]
[1765242140058,0.32224755,90506.0,90505.0,0.00016576]
[1765242141863,0.32124755,90506.0,90505.0,0.00016576]
[1765242142165,0.32224755,90506.0,90505.0,0.00016576]
[1765242142562,0.32224755,90506.0,90505.0,0.02722576]
[1765242142768,0.29711,90506.0,90505.0,0.00016576]
[1765242149165,0.29711,90506.0,90481.0,0.05499]
[1765242149166,0.05611,90482.0,90481.0,0.05499]
[1765242149369,0.067161,90482.0,90481.0,0.02706]
[1765242149772,0.067161,90482.0,90481.0,0.05499]
[1765242150473,0.067161,90482.0,90481.0,0.02706]
[1765242150674,0.0671621,90473.0,90472.0,0.02722576]
[1765242150861,0.0671621,90473.0,90472.0,0.07515576]
[1765242151066,0.0671621,90473.0,90472.0,0.05515576]
[1765242151266,0.0671621,90473.0,90472.0,0.06620796]
[1765242152068,0.0671621,90473.0,90472.0,0.06820796]
[1765242152463,0.05611,90473.0,90472.0,0.00016576]
[1765242152680,0.05611,90473.0,90472.0,0.00216576]
[1765242152864,0.05611,90473.0,90472.0,0.05715576]
[1765242153969,0.05611,90473.0,90472.0,0.00216576]
[1765242154172,0.05611,90473.0,90472.0,0.00116576]
[1765242154384,0.48611,90473.0,90472.0,0.00116576]
[1765242154686,0.05611,90466.0,90463.0,0.12906525]
[1765242155073,0.05611,90466.0,90456.0,0.2581305]
[1765242155272,0.0671629,90466.0,90442.0,0.00010769]
[1765242155482,0.05611,90449.0,90448.0,0.01120989]
[1765242155671,0.05611,90449.0,90448.0,0.05499]
[1765242156977,0.0110548,90451.0,90448.0,0.06611347]
[1765242157167,0.05611,90449.0,90448.0,0.05499]
[1765242157669,0.05611,90449.0,90448.0,0.05799]
[1765242158270,0.05611,90449.0,90448.0,0.05599]
[1765242158983,0.05611,90449.0,90448.0,0.001]
[1765242159776,0.41611,90449.0,90448.0,0.001]
[1765242159976,0.41611,90449.0,90442.0,0.00010769]
[1765242159977,0.05611,90443.0,90442.0,0.00010769]
[1765242160172,0.0671657,90443.0,90442.0,0.00010769]
[1765242160372,0.0671657,90443.0,90442.0,0.05509769]
[1765242161378,0.0671657,90443.0,90442.0,0.00110769]
[1765242162274,0.4471657,90443.0,90442.0,0.00110769]
[1765242162874,0.4471657,90443.0,90442.0,0.05541769]
[1765242163074,0.0671657,90443.0,90442.0,0.05541769]
[1765242163277,0.0871657,90443.0,90442.0,0.05541769]
[1765242163580,0.0871657,90443.0,90442.0,0.05441769]
[1765242163781,0.0671657,90443.0,90442.0,0.05441769]
[1765242172376,0.0671657,90443.0,90442.0,0.02716769]
[1765242172678,0.0671657,90443.0,90442.0,0.00010769]
[1765242172877,0.4171657,90443.0,90442.0,0.00010769]
[1765242175084,0.0690261,90440.0,90439.0,0.00016576]
[1765242175289,0.4390261,90440.0,90439.0,0.00016576]
[1765242176181,0.43910709,90440.0,90439.0,0.00016576]
[1765242176489,0.44110709,90440.0,90439.0,0.00016576]
[1765242176981,0.44110709,90440.0,90414.0,0.01629]
[1765242176982,0.0690284,90421.0,90420.0,0.19625598]
[1765242177197,0.0690284,90421.0,90420.0,0.05601]
[1765242177774,0.0690284,90421.0,90411.0,0.12918748]
[1765242177775,0.0110584,90421.0,90418.0,0.01124472]
[1765242177976,0.05797,90419.0,90418.0,0.05601]
[1765242179291,0.05897,90419.0,90418.0,0.06101]
[1765242180093,0.05907769,90419.0,90418.0,0.06101]
[1765242180486,0.47907769,90419.0,90418.0,0.005]
[1765242180883,0.05919,90416.0,90411.0,0.00016585]
[1765242181078,0.43919,90416.0,90411.0,0.00016585]
[1765242181292,0.43919,90416.0,90400.0,0.18627748]
[1765242181293,0.0692409,90401.0,90400.0,0.18627748]
[1765242181490,0.0692409,90401.0,90400.0,0.05709]
[1765242181690,0.0692409,90401.0,90400.0,0.06815816]
[1765242182391,0.0702409,90401.0,90400.0,0.07815816]
[1765242184191,0.0702409,90401.0,90400.0,0.06709]
[1765242184395,0.0702409,90401.0,90400.0,0.01]
[1765242185492,0.4702409,90401.0,90400.0,0.0053558]
[1765242186092,0.0692417,90394.0,90393.0,8.852e-05]
[1765242186290,0.0692417,90394.0,90390.0,2.17e-06]
[1765242186291,0.0692421,90391.0,90390.0,2.17e-06]
[1765242186492,0.0788252,90366.0,90365.0,0.00110663]
[1765242186699,0.0692452,90366.0,90365.0,0.05819663]
[1765242187094,0.0692452,90366.0,90365.0,0.02913663]
[1765242187393,0.06934711,90366.0,90365.0,0.00110663]
[1765242187600,0.06934711,90366.0,90365.0,0.05819663]
[1765242187895,0.06934711,90366.0,90365.0,0.00110663]
[1765242188100,0.06934711,90366.0,90365.0,0.05819663]
[1765242188599,0.05928191,90366.0,90365.0,0.06319663]
[1765242188794,0.05928191,90366.0,90365.0,0.07426193]
[1765242188986,0.05828191,90366.0,90365.0,0.06926193]
[1765242189300,0.05928191,90366.0,90365.0,0.06319663]
[1765242189800,0.05928191,90366.0,90365.0,0.00610663]
[1765242190498,0.00110191,90366.0,90365.0,0.46319663]
[1765242190687,0.00110191,90366.0,90365.0,0.21319663]
[1765242190994,0.00110191,90366.0,90365.0,0.42319663]
[1765242193098,0.05817191,90366.0,90365.0,0.42319663]
[1765242193294,0.05817191,90366.0,90365.0,0.00610663]
[1765242194099,0.05817191,90366.0,90365.0,0.06343663]
[1765242195403,0.05917191,90366.0,90365.0,0.05943663]
[1765242196103,0.06217191,90366.0,90365.0,0.05943663]
[1765242196504,0.03389191,90366.0,90365.0,0.05943663]
[1765242196802,0.06217191,90366.0,90365.0,0.05943663]
[1765242197107,0.06217191,90366.0,90365.0,0.07050193]
[1765242198003,0.00010191,90366.0,90365.0,0.06950193]
[1765242198204,0.00810191,90366.0,90365.0,0.07150193]
[1765242198707,0.00710191,90366.0,90365.0,0.07150193]
[1765242199303,0.03418191,90366.0,90365.0,0.07050193]
[1765242200008,0.06346191,90366.0,90365.0,0.07050193]
[1765242200509,0.06346191,90366.0,90365.0,0.00210663]
[1765242200802,0.06346191,90366.0,90365.0,0.03029663]
[1765242201002,0.06346191,90366.0,90365.0,0.00210663]
[1765242201803,0.05746191,90366.0,90365.0,0.00110663]
[1765242202003,0.06346191,90366.0,90365.0,0.00310663]
[1765242202405,0.05746191,90366.0,90365.0,0.00110663]
[1765242202607,0.06346191,90366.0,90365.0,0.00310663]
[1765242202808,0.06346191,90366.0,90365.0,0.06043663]
[1765242203411,0.00610191,90366.0,90365.0,0.06043663]
[1765242207217,0.04624711,90366.0,90365.0,0.06043663]
[1765242207605,0.03518191,90366.0,90365.0,0.06043663]
[1765242207916,0.00610191,90366.0,90365.0,0.06043663]
[1765242208509,0.00016594,90375.0,90374.0,0.0683942]
[1765242208710,0.05752594,90375.0,90374.0,0.0683942]
[1765242208910,0.06859004,90375.0,90374.0,0.0683942]
[1765242209503,0.06868434,90375.0,90374.0,0.0683942]
[1765242209710,0.07668434,90375.0,90374.0,0.0703942]
[1765242210218,0.06537159,90375.0,90374.0,0.0703942]
[1765242211207,0.06537159,90375.0,90374.0,0.05933]
[1765242211415,0.06537159,90375.0,90374.0,0.0703942]
[1765242214019,0.0080943,90375.0,90374.0,0.0703942]
[1765242214419,0.0371743,90375.0,90374.0,0.0703942]
[1765242214618,0.0654543,90375.0,90374.0,0.0703942]
[1765242218035,0.0371743,90375.0,90374.0,0.0703942]
[1765242218830,0.0654543,90375.0,90374.0,0.0703942]
[1765242220737,0.0080943,90375.0,90374.0,0.0703942]
[1765242220932,0.0654543,90375.0,90374.0,0.0703942]
[1765242221327,0.0080943,90375.0,90374.0,0.0703942]
[1765242221529,0.0371743,90375.0,90374.0,0.4303942]
[1765242221933,0.0654543,90375.0,90374.0,0.4303942]
[1765242222232,0.4954543,90375.0,90374.0,0.002]
[1765242223727,0.52034234,90375.0,90374.0,0.002]
[1765242224128,0.07243,90366.0,90365.0,0.00110663]
[1765242224439,0.05621,90343.0,90342.0,0.03999419]
[1765242224740,9.43e-05,90343.0,90342.0,0.08535419]
[1765242225041,9.43e-05,90343.0,90342.0,0.46535419]
[1765242225237,0.0271543,90343.0,90342.0,0.46535419]
[1765242225846,0.0281543,90343.0,90342.0,0.46935419]
[1765242226734,0.0573043,90343.0,90342.0,0.004]
[1765242227134,0.0573043,90343.0,90342.0,0.03302]
[1765242227335,0.0573043,90343.0,90342.0,0.06044]
[1765242227642,0.0573043,90343.0,90342.0,0.004]
[1765242228038,0.0573043,90343.0,90342.0,0.06044]
[1765242228438,0.4773043,90343.0,90342.0,0.03302]
[1765242228637,0.4773043,90343.0,90342.0,0.004]
[1765242229137,0.0573043,90343.0,90342.0,0.06044]
[1765242229338,0.4373043,90343.0,90342.0,0.004]
[1765242230246,0.4622901,90343.0,90342.0,0.004]
[1765242230544,0.4373043,90343.0,90342.0,0.03302]
[1765242230847,0.0573043,90343.0,90342.0,0.06044]
[1765242231044,0.0573043,90343.0,90342.0,0.03302]
[1765242231243,0.4573043,90343.0,90342.0,0.004]
[1765242231547,0.05621,90341.0,90333.0,0.00016594]
[1765242231849,0.42621,90341.0,90333.0,0.00016594]
[1765242233637,0.05621,90341.0,90340.0,0.05754694]
[1765242233838,0.05821,90341.0,90340.0,0.06454694]
[1765242234448,0.05821,90341.0,90340.0,0.00810694]
[1765242234650,0.05821,90341.0,90340.0,0.06454694]
[1765242234839,0.05821,90341.0,90340.0,0.03712694]
[1765242235040,0.20821,90341.0,90340.0,0.03712694]
[1765242235347,0.05821,90341.0,90340.0,0.06454694]
[1765242235644,0.002,90341.0,90340.0,0.06454694]
[1765242235844,0.05821,90341.0,90340.0,0.06454694]
[1765242238535,0.002,90341.0,90340.0,0.06454694]
[1765242239341,0.002,90341.0,90340.0,0.46454694]
[1765242241038,0.002,90341.0,90340.0,0.06454694]
[1765242241245,0.05821,90341.0,90340.0,0.06454694]
[1765242241745,0.05821,90341.0,90340.0,0.00810694]
[1765242242252,0.48821,90341.0,90340.0,0.00810694]
[1765242242449,0.0698601,90326.0,90318.0,0.05]
[1765242242644,0.05879,90297.0,90296.0,0.07956694]
[1765242242948,0.05879,90291.0,90290.0,0.05729755]
[1765242243553,0.01636,90304.0,90291.0,0.0110743]
[1765242243748,0.02889,90292.0,90291.0,0.0385543]
[1765242244050,0.06079,90297.0,90296.0,0.05619]
[1765242244255,0.02889,90291.0,90290.0,0.07392755]
[1765242244440,0.06079,90291.0,90290.0,0.00710755]
[1765242244644,0.06079,90291.0,90290.0,0.07992755]
[1765242244848,0.06079,90291.0,90290.0,0.06329755]
[1765242245253,0.06079,90291.0,90290.0,0.00710755]
[1765242245441,0.06079,90291.0,90290.0,0.06329755]
[1765242245848,0.05879,90291.0,90290.0,0.00110755]
[1765242246054,0.05879,90291.0,90290.0,0.05729755]
[1765242246444,0.00016613,90300.0,90299.0,0.02748]
[1765242246445,0.05895613,90300.0,90299.0,0.02748]
[1765242246645,0.05895613,90300.0,90299.0,0.05619]
[1765242247246,0.05895613,90300.0,90299.0,0.45619]
[1765242247247,0.00016613,90300.0,90299.0,0.45619]
[1765242247743,0.0698597,90330.0,90329.0,0.05619]
[1765242248148,0.05879,90330.0,90329.0,0.05619]
[1765242248546,0.02889,90313.0,90312.0,0.0672617]
[1765242248746,0.00016613,90322.0,90319.0,0.05619]
[1765242248950,0.00016613,90322.0,90321.0,0.05619]
[1765242249148,0.00027371,90322.0,90321.0,0.05619]
[1765242249355,0.00027371,90322.0,90321.0,0.42619]
[1765242249854,0.0110679,90344.0,90330.0,0.01405]
[1765242250050,0.0399579,90344.0,90343.0,0.02748]
[1765242250245,0.0698579,90344.0,90343.0,0.05619]
[1765242250556,0.02889,90344.0,90343.0,0.05619]
[1765242250745,0.05879,90344.0,90343.0,0.05619]
[1765242250945,0.02889,90344.0,90343.0,0.05619]
[1765242251353,0.0399573,90349.0,90348.0,0.05619]
[1765242251653,0.05879,90349.0,90348.0,0.05619]
[1765242252656,0.05895,90336.0,90335.0,0.05659]
[1765242252846,0.0150673,90349.0,90336.0,0.0110688]
[1765242253049,0.0110678,90345.0,90336.0,0.3810688]
[1765242253243,0.0700178,90345.0,90344.0,0.02812]
[1765242253559,0.0700178,90345.0,90344.0,0.05659]
[1765242253950,0.05895,90345.0,90344.0,0.05659]
[1765242254460,0.002,90349.0,90348.0,0.05659]
[1765242254748,0.06095,90349.0,90348.0,0.05659]
[1765242255453,0.002,90349.0,90348.0,0.44785152]
[1765242255845,0.00016603,90353.0,90352.0,0.05659]
[1765242256047,0.00016603,90353.0,90352.0,0.45659]
[1765242256652,0.0110657,90363.0,90362.0,0.05659]
[1765242256862,0.011065,90368.0,90362.0,0.05659]
[1765242257150,0.070015,90368.0,90367.0,0.05659]
[1765242257748,0.05895,90361.0,90360.0,0.05659]
[1765242258144,0.02927,90361.0,90360.0,0.07441]
[1765242259154,0.05895,90361.0,90360.0,0.05659]
[1765242259656,0.003,90368.0,90367.0,0.05659]
[1765242259957,0.05895,90375.0,90374.0,0.05659]
[1765242260144,0.0700141,90375.0,90374.0,0.05659]
[1765242260953,0.0730141,90375.0,90374.0,0.05659]
[1765242261459,0.003,90375.0,90374.0,0.0676542]
[1765242262658,0.003,90375.0,90374.0,0.4276542]
[1765242263050,0.00016603,90377.0,90376.0,0.05659]
[1765242263250,0.00016603,90377.0,90376.0,0.41659]
[1765242264255,0.00316603,90377.0,90376.0,0.41659]
[1765242265063,0.06211603,90377.0,90376.0,0.07659]
[1765242266956,0.06211603,90377.0,90369.0,0.01782]
[1765242266957,0.06211603,90377.0,90370.0,0.0110646]
[1765242267164,0.05895,90371.0,90370.0,0.0676546]
[1765242267658,0.05895,90367.0,90366.0,0.0676551]
[1765242270060,0.06095,90367.0,90366.0,0.0676551]
[1765242270460,0.05895,90374.0,90373.0,0.0676542]
[1765242270851,0.05895,90370.0,90369.0,0.0676547]
[1765242271858,0.05911603,90377.0,90376.0,0.0676539]
[1765242272856,0.06211603,90377.0,90376.0,0.0676539]
[1765242274864,0.00316603,90377.0,90376.0,0.0854739]
[1765242275061,0.00016603,90377.0,90376.0,0.4754739]
[1765242275263,0.00316603,90377.0,90376.0,0.4754739]
[1765242276370,0.00216603,90377.0,90376.0,0.4754739]
[1765242278267,0.00016603,90377.0,90376.0,0.4754739]
[1765242278474,0.00216603,90377.0,90376.0,0.4754739]
[1765242280563,0.0110612,90399.0,90389.0,0.0676524]
[1765242280760,0.01684,90400.0,90389.0,0.0676524]
[1765242281259,0.0110608,90402.0,90389.0,0.0676524]
[1765242281768,0.00016603,90399.0,90389.0,0.0676524]
[1765242282063,0.00310632,90390.0,90389.0,0.0676524]
[1765242284761,0.00016603,90399.0,90398.0,0.0797713]
[1765242284762,0.02852603,90399.0,90398.0,0.0797713]
[1765242285468,0.02852603,90399.0,90384.0,0.085913]
[1765242285469,0.05666,90385.0,90384.0,0.085913]
[1765242285666,0.05666,90385.0,90384.0,0.05703]
[1765242285873,0.0677233,90381.0,90380.0,0.00016603]
[1765242286056,0.4577233,90381.0,90380.0,0.00016603]
[1765242286260,0.48270109,90381.0,90380.0,0.00016603]
[1765242286460,0.05666,90371.0,90370.0,0.21877175]
[1765242286656,0.05666,90371.0,90370.0,0.05703]
[1765242288470,0.05866,90371.0,90370.0,0.05803]
[1765242288869,0.05666,90371.0,90370.0,0.05703]
[1765242289071,0.05866,90371.0,90370.0,0.05803]
[1765242290371,0.002,90371.0,90370.0,0.48803]
[1765242290762,0.02852594,90380.0,90379.0,0.0680936]
[1765242290959,0.08242877,90380.0,90379.0,0.0680936]
[1765242291969,0.08442877,90380.0,90379.0,0.0690936]
[1765242292174,0.02776877,90380.0,90379.0,0.0690936]
[1765242292770,0.00216594,90380.0,90379.0,0.0690936]
[1765242295980,0.00216594,90380.0,90379.0,0.4190936]
[1765242297175,0.011061,90400.0,90399.0,0.05703]
[1765242297176,0.067721,90400.0,90399.0,0.05703]
[1765242297374,0.09333571,90400.0,90399.0,0.05703]
[1765242298575,0.09533571,90400.0,90399.0,0.05803]
[1765242298776,0.92533571,90400.0,90399.0,0.001]
[1765242298982,0.0842821,90391.0,90390.0,0.00016594]
[1765242299278,0.10989681,90391.0,90390.0,0.00016594]
[1765242299672,0.49989681,90391.0,90390.0,0.00016594]
[1765242300269,0.05397471,90391.0,90390.0,0.06825814]
[1765242300469,0.02561471,90391.0,90390.0,0.06825814]
[1765242300679,0.08229266,90399.0,90398.0,0.0680913]
[1765242300876,0.08229288,90399.0,90398.0,0.0680913]
[1765242301473,0.02563288,90399.0,90398.0,0.0680913]
[1765242301888,0.05828594,90409.0,90408.0,0.06899]
[1765242302072,0.13392037,90409.0,90408.0,0.06899]
[1765242302477,0.13392037,90409.0,90408.0,0.05793]
[1765242302881,0.05812,90401.0,90400.0,0.05793]
[1765242303068,0.08375443,90401.0,90400.0,0.02873]
[1765242303380,0.08375443,90401.0,90400.0,0.07558]
[1765242303574,0.08375443,90401.0,90400.0,0.05793]
[1765242304485,0.08575443,90401.0,90400.0,0.06093]
[1765242304984,0.08375443,90401.0,90400.0,0.05793]
[1765242305186,0.08575443,90401.0,90400.0,0.06093]
[1765242306785,0.08575443,90401.0,90400.0,0.07758]
[1765242306986,0.08575443,90401.0,90400.0,0.05993]
[1765242307186,0.08375443,90401.0,90400.0,0.05793]
[1765242307386,0.08575443,90401.0,90400.0,0.06093]
[1765242307789,0.08575443,90401.0,90400.0,0.05793]
[1765242307991,0.08575443,90401.0,90400.0,0.06093]
[1765242309279,0.02763443,90401.0,90400.0,0.42093]
[1765242309491,0.02763443,90401.0,90400.0,0.431991]
[1765242309787,0.002,90401.0,90400.0,0.431991]
[1765242310786,0.00016594,90409.0,90408.0,0.08664]
[1765242312679,0.00016594,90409.0,90408.0,0.50664]
[1765242312880,0.00216594,90409.0,90408.0,0.50964]
[1765242313090,0.00216594,90409.0,90408.0,0.52065204]
[1765242313393,0.00110602,90415.0,90414.0,0.0685193]
[1765242313685,0.05548,90428.0,90427.0,0.0685176]
[1765242315288,0.05425805,90428.0,90427.0,0.0685176]
[1765242316284,0.05625805,90428.0,90427.0,0.0765176]
[1765242319198,0.002,90428.0,90427.0,0.0765176]